[Event "AUT-ch U18-Open 2025"]
[Site "Fuerstenfeld"]
[Date "2025.04.13"]
[Round "1.1"]
[White "Kuti, Oliver"]
[Black "Balint, Peter"]
[Result "0-1"]
[Annotator "ChessBase"]
[ECO "B22"]
[WhiteElo "2008"]
[BlackElo "2366"]
[PlyCount "78"]
[EventDate "2025.04.12"]
[EventType "swiss"]
[EventCountry "AUT"]
[SourceTitle "playchess.com"]
[Source "ChessBase"]
[SourceQuality "1"]
[TimeControl "5400+30"]

1. e4 {[%emt 0:00:03]} c5 {[%emt 0:00:14]} 2. c3 {[%emt 0:00:12]} Nf6 {[%emt 0:00:26]} 3. e5 {[%emt 0:00:04]} Nd5 {[%emt 0:00:07]} 4. Nf3 {[%emt 0:00:06]} d6 {[%emt 0:00:04]} 5. d4 {[%emt 0:00:10]} cxd4 {[%emt 0:00:10]} 6. cxd4 {[%emt 0:00:16]} Nc6 {[%emt 1:32:29]} 7. Bc4 {[%emt 0:00:12]} Nb6 {[%emt 0:00:00]} 8. Bb5 {[%emt 0:00:29]} dxe5 {[%emt 0:00:00]} 9. Nxe5 {[%emt 0:00:09]} Bd7 {[%emt 0:00:00]} 10. Nxd7 {[%emt 0:00:20]} Qxd7 {[%emt 0:00:00]} 11. Nc3 {[%emt 0:00:09]} Rd8 {[%emt 0:00:00]} 12. Be3 {[%emt 0:02:09]} e6 {[%emt 0:00:00]} 13. O-O {[%emt 0:01:37]} Be7 {[%emt 0:00:00]} 14. Qg4 {[%emt 0:04:31]} O-O {[%emt 0:00:00]} 15. Rad1 {[%emt 0:02:18]} Rfe8 {[%emt 0:00:00]} 16. d5 {[%emt 0:16:42]} Nxd5 {[%emt 0:00:00]} 17. Bxa7 {[%emt 0:00:17]} Qc7 {[%emt 0:00:00]} 18. Nxd5 {[%emt 0:00:24]} exd5 {[%emt 0:00:00]} 19. Bd4 {[%emt 0:02:50]} Bf8 {[%emt 0:00:00]} 20. Bd3 {[%emt 0:08:28]} g6 {[%emt 0:00:00]} 21. Bb1 {[%emt 0:09:08]} Nxd4 {[%emt 0:00:00]} 22. Rxd4 {[%emt 0:03:54]} Qb6 {[%emt 0:00:00]} 23. Qd1 {[%emt 0:03:39]} Re5 {[%emt 0:00:00]} 24. Rd2 {[%emt 0:10:27]} Bc5 {[%emt 0:00:00]} 25. a3 {[%emt 0:02:23]} Qe6 {[%emt 0:00:00]} 26. Ba2 {[%emt 0:01:57]} h5 {[%emt 0:10:00]} 27. h3 {[%emt 0:05:31]} Kg7 {[%emt 0:00:00]} 28. Qf3 {[%emt 0:02:33]} h4 {[%emt 0:00:00]} 29. Qc3 {[%emt 0:05:05]} Bb6 {[%emt 0:00:00]} 30. Rfd1 {[%emt 0:06:40]} Kh7 {[%emt 0:00:00]} 31. Rc2 {[%emt 0:05:01]} Rd6 {[%emt 0:00:00]} 32. Qb4 {[%emt 0:01:38]} Re4 {[%emt 0:00:00]} 33. Qd2 {[%emt 0:00:45]} Qe5 {[%emt 0:00:00]} 34. Qc3 {[%emt 0:03:49]} Bd4 {[%emt 0:00:00]} 35. Qd2 {[%emt 0:00:46]} Rf6 {[%emt 0:00:00]} 36. Qd3 {[%emt 0:00:29]} Rxf2 {[%emt 0:00:00]} 37. Rxf2 {[%emt 0:00:02]} Re1+ {[%emt 0:00:00]} 38. Rxe1 {[%emt 0:00:10]} Qxe1+ {[%emt 0:00:00]} 39. Kh2 {[%emt 0:00:21]} Bxf2 {[%emt 0:00:00]} 0-1

[Event "AUT-ch U18-Open 2025"]
[Site "Fuerstenfeld"]
[Date "2025.04.13"]
[Round "1.2"]
[White "Gschiel, Alexander"]
[Black "Hahn, Stefan"]
[Result "1-0"]
[Annotator "ChessBase"]
[ECO "A40"]
[WhiteElo "2317"]
[BlackElo "1988"]
[PlyCount "61"]
[EventDate "2025.04.12"]
[EventType "swiss"]
[EventCountry "AUT"]
[SourceTitle "playchess.com"]
[Source "ChessBase"]
[SourceQuality "1"]
[TimeControl "5400+30"]

1. d4 {[%emt 0:00:05]} e6 {[%emt 0:00:06]} 2. c4 {[%emt 0:00:09]} b6 {[%emt 0:00:04]} 3. Nf3 {[%emt 0:00:53]} Bb7 {[%emt 0:00:06]} 4. Nc3 {[%emt 0:00:08]} Bb4 {[%emt 0:00:06]} 5. e3 {[%emt 0:00:58]} f5 {[%emt 0:00:08]} 6. Bd2 {[%emt 0:00:57]} Nf6 {[%emt 0:00:35]} 7. Be2 {[%emt 0:00:52]} O-O {[%emt 0:00:46]} 8. O-O {[%emt 0:00:08]} Bxc3 {[%emt 0:00:21]} 9. Bxc3 {[%emt 0:00:09]} Ne4 {[%emt 0:00:12]} 10. Be1 {[%emt 0:02:42]} d6 {[%emt 0:03:05]} 11. Nd2 {[%emt 0:06:48]} Nxd2 {[%emt 0:05:34]} 12. Qxd2 {[%emt 0:01:11]} Nd7 {[%emt 0:00:46]} 13. f3 {[%emt 0:01:25]} Qe8 {[%emt 0:04:48]} 14. Rc1 {[%emt 0:07:18]} a5 {[%emt 0:05:45]} 15. Bg3 {[%emt 0:02:47]} e5 {[%emt 0:06:00]} 16. dxe5 {[%emt 0:08:01]} dxe5 {[%emt 0:06:13]} 17. Rfd1 {[%emt 0:04:50]} Rd8 {[%emt 0:05:15]} 18. c5 {[%emt 0:10:15]} Nxc5 {[%emt 0:19:24]} 19. Qxd8 {[%emt 0:01:22]} Qxd8 {[%emt 0:00:10]} 20. Rxd8 {[%emt 0:00:05]} Rxd8 {[%emt 0:00:06]} 21. Bxe5 {[%emt 0:00:06]} Ba6 {[%emt 0:16:06]} 22. Rxc5 {[%emt 0:01:11]} bxc5 {[%emt 0:05:23]} 23. Bxa6 {[%emt 0:00:08]} Rd7 {[%emt 0:05:17]} 24. a4 {[%emt 0:01:36]} g5 {[%emt 0:01:54]} 25. Bc3 {[%emt 0:01:20]} Rd1+ {[%emt 0:02:32]} 26. Kf2 {[%emt 0:00:05]} Ra1 {[%emt 0:02:09]} 27. Bc4+ {[%emt 0:00:33]} Kf8 {[%emt 0:00:15]} 28. b3 {[%emt 0:00:09]} Ra2+ {[%emt 0:00:23]} 29. Kg3 {[%emt 0:00:22]} f4+ {[%emt 0:00:11]} 30. exf4 {[%emt 0:00:05]} gxf4+ {[%emt 0:00:02]} 31. Kh3 {[%emt 0:00:25]} 1-0

[Event "AUT-ch U18-Open 2025"]
[Site "Fuerstenfeld"]
[Date "2025.04.13"]
[Round "1.3"]
[White "Daemon, Clemens"]
[Black "Leitgeb, Julian"]
[Result "0-1"]
[Annotator "ChessBase"]
[ECO "B22"]
[WhiteElo "1965"]
[BlackElo "2313"]
[PlyCount "82"]
[EventDate "2025.04.12"]
[EventType "swiss"]
[EventCountry "AUT"]
[SourceTitle "playchess.com"]
[Source "ChessBase"]
[SourceQuality "1"]
[TimeControl "5400+30"]

1. e4 {[%emt 0:00:04]} c5 {[%emt 0:00:23]} 2. c3 {[%emt 0:00:16]} Nf6 {[%emt 0:00:05]} 3. e5 {[%emt 0:00:08]} Nd5 {[%emt 0:00:06]} 4. Bc4 {[%emt 0:00:10]} Nb6 {[%emt 0:00:30]} 5. Bb3 {[%emt 0:00:10]} c4 {[%emt 0:00:19]} 6. Bc2 {[%emt 0:00:07]} g6 {[%emt 0:00:58]} 7. Nf3 {[%emt 0:01:30]} Bg7 {[%emt 0:00:43]} 8. O-O {[%emt 0:00:31]} Nc6 {[%emt 0:03:24]} 9. Re1 {[%emt 0:00:16]} d6 {[%emt 0:03:06]} 10. exd6 {[%emt 0:00:43]} Qxd6 {[%emt 0:00:43]} 11. b3 {[%emt 0:00:50]} O-O {[%emt 0:11:48]} 12. Na3 {[%emt 0:03:49]} Be6 {[%emt 0:10:54]} 13. Rb1 {[%emt 0:06:23]} Qd7 {[%emt 0:03:30]} 14. bxc4 {[%emt 0:04:24]} Nxc4 {[%emt 0:04:54]} 15. Bb3 {[%emt 0:05:22]} N6a5 {[%emt 0:11:37]} 16. Nxc4 {[%emt 0:07:08]} Nxc4 {[%emt 0:11:00]} 17. Rxe6 {[%emt 0:05:35]} Qxe6 {[%emt 0:00:04]} 18. d3 {[%emt 0:00:19]} b5 {[%emt 0:02:15]} 19. Qf1 {[%emt 0:04:14]} Qf5 {[%emt 0:01:52]} 20. a4 {[%emt 0:09:25]} a6 {[%emt 0:01:14]} 21. Bg5 {[%emt 0:01:34]} Ne5 {[%emt 0:01:14]} 22. Bxe7 {[%emt 0:10:02]} Nxf3+ {[%emt 0:00:41]} 23. gxf3 {[%emt 0:00:09]} Rfe8 {[%emt 0:00:11]} 24. Bb4 {[%emt 0:02:33]} Qxf3 {[%emt 0:01:29]} 25. axb5 {[%emt 0:00:57]} axb5 {[%emt 0:00:23]} 26. d4 {[%emt 0:01:13]} Rac8 {[%emt 0:04:36]} 27. Qg2 {[%emt 0:03:53]} Qf5 {[%emt 0:03:51]} 28. Ra1 {[%emt 0:01:05]} Bf8 {[%emt 0:02:03]} 29. d5 {[%emt 0:04:34]} Bxb4 {[%emt 0:01:34]} 30. cxb4 {[%emt 0:00:07]} Re4 {[%emt 0:00:40]} 31. h3 {[%emt 0:01:51]} Qe5 {[%emt 0:05:40]} 32. Rd1 {[%emt 0:04:41]} Rxb4 {[%emt 0:00:11]} 33. Ba2 {[%emt 0:04:43]} Rd4 {[%emt 0:00:47]} 34. Rb1 {[%emt 0:03:28]} Rc3 {[%emt 0:00:59]} 35. Ra1 {[%emt 0:02:51]} Re4 {[%emt 0:02:09]} 36. Qf1 {[%emt 0:00:22]} b4 {[%emt 0:02:20]} 37. d6 {[%emt 0:01:11]} Qxd6 {[%emt 0:00:43]} 38. Rd1 {[%emt 0:00:34]} Rd4 {[%emt 0:00:14]} 39. Rxd4 {[%emt 0:02:58]} Qxd4 {[%emt 0:00:07]} 40. Qb5 {[%emt 0:00:27]} Rc1+ {[%emt 0:00:35]} 41. Kh2 {[%emt 0:00:44]} Qxf2# {[%emt 0:00:41]} 0-1

[Event "AUT-ch U18-Open 2025"]
[Site "Fuerstenfeld"]
[Date "2025.04.13"]
[Round "1.4"]
[White "Wendl, Philipp"]
[Black "Pedevilla, Luis"]
[Result "1-0"]
[Annotator "ChessBase"]
[ECO "E14"]
[WhiteElo "2268"]
[BlackElo "1925"]
[PlyCount "87"]
[EventDate "2025.04.12"]
[EventType "swiss"]
[EventCountry "AUT"]
[SourceTitle "playchess.com"]
[Source "ChessBase"]
[SourceQuality "1"]
[TimeControl "5400+30"]

1. c4 {[%emt 0:00:04]} b6 {[%emt 0:01:31]} 2. Nc3 {[%emt 0:01:32]} Bb7 {[%emt 0:00:58]} 3. d4 {[%emt 0:01:58]} Nf6 {[%emt 0:02:39]} 4. Nf3 {[%emt 0:03:04]} e6 {[%emt 0:00:24]} 5. a3 {[%emt 0:00:39]} Be7 {[%emt 0:02:04]} 6. e3 {[%emt 0:03:04]} O-O {[%emt 0:04:48]} 7. Bd3 {[%emt 0:01:23]} d5 {[%emt 0:00:39]} 8. cxd5 {[%emt 0:00:05]} exd5 {[%emt 0:00:36]} 9. O-O {[%emt 0:00:05]} Nbd7 {[%emt 0:03:01]} 10. Qc2 {[%emt 0:02:48]} c5 {[%emt 0:06:06]} 11. Ne5 {[%emt 0:02:24]} Re8 {[%emt 0:13:00]} 12. f4 {[%emt 0:02:54]} Bf8 {[%emt 0:01:03]} 13. Bd2 {[%emt 0:03:59]} a6 {[%emt 0:11:04]} 14. Be1 {[%emt 0:06:16]} Be7 {[%emt 0:06:54]} 15. Rd1 {[%emt 0:04:34]} c4 {[%emt 0:04:57]} 16. Bf5 {[%emt 0:04:34]} g6 {[%emt 0:08:23]} 17. Bh3 {[%emt 0:02:03]} Nf8 {[%emt 0:04:11]} 18. g4 {[%emt 0:03:05]} Bc8 {[%emt 0:01:49]} 19. Bg2 {[%emt 0:08:36]} Bxg4 {[%emt 0:10:03]} 20. Nxg4 {[%emt 0:00:30]} Nxg4 {[%emt 0:00:03]} 21. Nxd5 {[%emt 0:00:12]} Rc8 {[%emt 0:00:58]} 22. e4 {[%emt 0:03:11]} Nd7 {[%emt 0:02:42]} 23. Bh3 {[%emt 0:06:29]} h5 {[%emt 0:03:05]} 24. Qg2 {[%emt 0:01:54]} Bf8 {[%emt 0:03:03]} 25. Bxg4 {[%emt 0:02:56]} hxg4 {[%emt 0:00:02]} 26. Qxg4 {[%emt 0:00:15]} Nf6 {[%emt 0:00:05]} 27. Nxf6+ {[%emt 0:00:06]} Qxf6 {[%emt 0:00:01]} 28. e5 {[%emt 0:00:36]} Qf5 {[%emt 0:01:52]} 29. Qxf5 {[%emt 0:01:55]} gxf5 {[%emt 0:00:01]} 30. d5 {[%emt 0:00:27]} Bc5+ {[%emt 0:00:08]} 31. Bf2 {[%emt 0:00:31]} c3 {[%emt 0:03:34]} 32. bxc3 {[%emt 0:02:05]} Bxf2+ {[%emt 0:00:40]} 33. Rxf2 {[%emt 0:00:06]} Rxc3 {[%emt 0:00:05]} 34. Rg2+ {[%emt 0:01:04]} Kf8 {[%emt 0:00:08]} 35. Rg5 {[%emt 0:00:56]} Ke7 {[%emt 0:03:22]} 36. Rxf5 {[%emt 0:01:10]} Rf8 {[%emt 0:00:07]} 37. Rf6 {[%emt 0:00:42]} Rc2 {[%emt 0:01:23]} 38. d6+ {[%emt 0:01:33]} Kd8 {[%emt 0:00:09]} 39. Rh6 {[%emt 0:02:36]} Rg8+ {[%emt 0:01:04]} 40. Kh1 {[%emt 0:00:06]} Rf2 {[%emt 0:00:25]} 41. d7 {[%emt 0:02:24]} f6 {[%emt 0:00:41]} 42. e6 {[%emt 0:01:11]} Rxf4 {[%emt 0:01:54]} 43. Rh7 {[%emt 0:02:12]} Re4 {[%emt 0:00:18]} 44. Rc1 {[%emt 0:00:04]} 1-0

[Event "AUT-ch U18-Open 2025"]
[Site "Fuerstenfeld"]
[Date "2025.04.13"]
[Round "1.5"]
[White "Fitz, Jonathan David"]
[Black "Hengl, Philip"]
[Result "1/2-1/2"]
[Annotator "ChessBase"]
[ECO "E16"]
[WhiteElo "1918"]
[BlackElo "2205"]
[PlyCount "137"]
[EventDate "2025.04.12"]
[EventType "swiss"]
[EventCountry "AUT"]
[SourceTitle "playchess.com"]
[Source "ChessBase"]
[SourceQuality "1"]
[TimeControl "5400+30"]

1. Nf3 {[%emt 0:00:04]} Nf6 {[%emt 0:00:15]} 2. c4 {[%emt 0:00:07]} e6 {[%emt 0:00:27]} 3. g3 {[%emt 0:00:08]} b6 {[%emt 0:00:12]} 4. d4 {[%emt 0:00:18]} Bb7 {[%emt 0:00:19]} 5. Bg2 {[%emt 0:00:10]} g6 {[%emt 0:00:09]} 6. O-O {[%emt 0:00:21]} Bg7 {[%emt 0:00:25]} 7. Nc3 {[%emt 0:01:06]} Ne4 {[%emt 0:00:05]} 8. Qd3 {[%emt 0:03:08]} Nxc3 {[%emt 0:00:18]} 9. bxc3 {[%emt 0:00:20]} d6 {[%emt 0:02:55]} 10. Ng5 {[%emt 0:05:05]} Bxg2 {[%emt 0:01:26]} 11. Kxg2 {[%emt 0:00:14]} Qd7 {[%emt 0:04:53]} 12. Qf3 {[%emt 0:01:55]} Nc6 {[%emt 0:02:40]} 13. Ne4 {[%emt 0:06:02]} O-O {[%emt 0:15:37]} 14. Nf6+ {[%emt 0:18:27]} Bxf6 {[%emt 0:00:05]} 15. Qxf6 {[%emt 0:00:01]} Qe7 {[%emt 0:00:16]} 16. Bg5 {[%emt 0:17:04]} Qxf6 {[%emt 0:00:06]} 17. Bxf6 {[%emt 0:00:03]} Na5 {[%emt 0:08:03]} 18. c5 {[%emt 0:00:24]} bxc5 {[%emt 0:01:48]} 19. dxc5 {[%emt 0:00:07]} d5 {[%emt 0:02:09]} 20. Rab1 {[%emt 0:04:13]} Nc6 {[%emt 0:03:31]} 21. Rb7 {[%emt 0:01:54]} Rfc8 {[%emt 0:04:23]} 22. Rfb1 {[%emt 0:05:35]} Rab8 {[%emt 0:02:45]} 23. Rxb8 {[%emt 0:01:02]} Rxb8 {[%emt 0:00:05]} 24. Rxb8+ {[%emt 0:00:05]} Nxb8 {[%emt 0:00:05]} 25. Be5 {[%emt 0:00:43]} Na6 {[%emt 0:00:21]} 26. c6 {[%emt 0:01:36]} Kf8 {[%emt 0:00:50]} 27. Bd4 {[%emt 0:02:23]} Ke7 {[%emt 0:01:24]} 28. Bxa7 {[%emt 0:01:01]} Kd6 {[%emt 0:01:33]} 29. Be3 {[%emt 0:02:03]} Kxc6 {[%emt 0:01:16]} 30. Kf3 {[%emt 0:02:09]} f6 {[%emt 0:11:07]} 31. Ba7 {[%emt 0:09:58]} Kb7 {[%emt 0:02:50]} 32. Be3 {[%emt 0:00:14]} c5 {[%emt 0:01:29]} 33. Bh6 {[%emt 0:00:29]} Nb8 {[%emt 0:01:26]} 34. e4 {[%emt 0:04:45]} Kc6 {[%emt 0:04:23]} 35. Ke3 {[%emt 0:04:46]} Kb5 {[%emt 0:00:45]} 36. exd5 {[%emt 0:00:04]} exd5 {[%emt 0:00:04]} 37. Kd3 {[%emt 0:00:18]} Nd7 {[%emt 0:07:51]} 38. f4 {[%emt 0:03:25]} Kc6 {[%emt 0:08:07]} 39. Bg7 {[%emt 0:00:41]} Kd6 {[%emt 0:01:02]} 40. a4 {[%emt 0:00:17]} Kc6 {[%emt 0:00:15]} 41. Kc2 {[%emt 0:01:13]} Kb6 {[%emt 0:01:17]} 42. Kb3 {[%emt 0:00:14]} Kc6 {[%emt 0:06:51]} 43. g4 {[%emt 0:01:00]} f5 {[%emt 0:01:16]} 44. h3 {[%emt 0:00:51]} Nb6 {[%emt 0:01:09]} 45. Be5 {[%emt 0:00:28]} Nc4 {[%emt 0:00:56]} 46. gxf5 {[%emt 0:02:31]} gxf5 {[%emt 0:00:01]} 47. Bf6 {[%emt 0:03:26]} Nd6 {[%emt 0:00:52]} 48. Be7 {[%emt 0:00:39]} Ne4 {[%emt 0:00:08]} 49. Bd8 {[%emt 0:00:49]} Nf2 {[%emt 0:01:00]} 50. h4 {[%emt 0:00:13]} h5 {[%emt 0:00:19]} 51. Be7 {[%emt 0:00:35]} Nd3 {[%emt 0:00:33]} 52. Bg5 {[%emt 0:00:11]} Nf2 {[%emt 0:02:03]} 53. Bf6 {[%emt 0:01:02]} Ne4 {[%emt 0:00:11]} 54. Be5 {[%emt 0:00:37]} Nd2+ {[%emt 0:00:12]} 55. Kc2 {[%emt 0:00:10]} Nc4 {[%emt 0:00:02]} 56. Bf6 {[%emt 0:00:21]} Nb6 {[%emt 0:00:55]} 57. Kb3 {[%emt 0:00:15]} Nd7 {[%emt 0:00:39]} 58. Be7 {[%emt 0:00:32]} Kb6 {[%emt 0:00:34]} 59. Bd8+ {[%emt 0:00:18]} Ka6 {[%emt 0:00:28]} 60. Be7 {[%emt 0:00:51]} Kb7 {[%emt 0:00:18]} 61. a5 {[%emt 0:00:33]} Kc6 {[%emt 0:01:26]} 62. Ka4 {[%emt 0:00:12]} Nb8 {[%emt 0:00:24]} 63. Bf6 {[%emt 0:00:16]} Na6 {[%emt 0:00:09]} 64. Be5 {[%emt 0:00:14]} c4 {[%emt 0:01:06]} 65. Bd4 {[%emt 0:00:57]} Nc7 {[%emt 0:00:36]} 66. Kb4 {[%emt 0:00:36]} Na6+ {[%emt 0:00:11]} 67. Ka4 {[%emt 0:00:05]} Nb8 {[%emt 0:00:38]} 68. Kb4 {[%emt 0:00:07]} Na6+ {[%emt 0:00:12]} 69. Ka4 {[%emt 0:00:05]} 1/2-1/2

[Event "AUT-ch U18-Open 2025"]
[Site "Fuerstenfeld"]
[Date "2025.04.13"]
[Round "1.6"]
[White "Zaytsev, Alexander"]
[Black "Maier, Tobias"]
[Result "0-1"]
[Annotator "ChessBase"]
[ECO "C55"]
[WhiteElo "2178"]
[BlackElo "1915"]
[PlyCount "76"]
[EventDate "2025.04.12"]
[EventType "swiss"]
[EventCountry "AUT"]
[SourceTitle "playchess.com"]
[Source "ChessBase"]
[SourceQuality "1"]
[TimeControl "5400+30"]

1. e4 {[%emt 0:00:31]} e5 {[%emt 0:00:04]} 2. Nf3 {[%emt 0:00:25]} Nc6 {[%emt 0:00:06]} 3. Bc4 {[%emt 0:00:42]} Nf6 {[%emt 0:04:13]} 4. d3 {[%emt 0:03:41]} Be7 {[%emt 0:00:40]} 5. Nc3 {[%emt 0:04:07]} d6 {[%emt 0:00:19]} 6. a4 {[%emt 0:05:50]} a5 {[%emt 0:03:12]} 7. h3 {[%emt 0:11:38]} O-O {[%emt 0:04:03]} 8. O-O {[%emt 0:04:49]} h6 {[%emt 0:00:18]} 9. Nh2 {[%emt 0:12:05]} Be6 {[%emt 0:08:12]} 10. Bxe6 {[%emt 0:08:49]} fxe6 {[%emt 0:00:08]} 11. f4 {[%emt 0:01:22]} exf4 {[%emt 0:01:15]} 12. Bxf4 {[%emt 0:01:33]} e5 {[%emt 0:00:13]} 13. Be3 {[%emt 0:04:54]} Qd7 {[%emt 0:03:39]} 14. Qe1 {[%emt 0:10:13]} d5 {[%emt 0:21:32]} 15. Nxd5 {[%emt 0:06:02]} Nxd5 {[%emt 0:00:09]} 16. exd5 {[%emt 0:00:03]} Qxd5 {[%emt 0:00:08]} 17. Kh1 {[%emt 0:09:54]} Bd6 {[%emt 0:07:35]} 18. Qh4 {[%emt 0:03:48]} Nd4 {[%emt 0:43:44]} 19. c4 {[%emt 0:05:28]} Qe6 {[%emt 0:00:00]} 20. Bxd4 {[%emt 0:03:06]} exd4 {[%emt 0:00:00]} 21. Qxd4 {[%emt 0:00:42]} Be5 {[%emt 0:00:00]} 22. Qe4 {[%emt 0:00:56]} Qd6 {[%emt 0:00:00]} 23. Nf3 {[%emt 0:00:44]} Bxb2 {[%emt 0:00:00]} 24. Rab1 {[%emt 0:00:08]} Bc3 {[%emt 0:00:00]} 25. Rxb7 {[%emt 0:00:56]} Rad8 {[%emt 0:00:00]} 26. Rd1 {[%emt 0:00:31]} c5 {[%emt 0:00:00]} 27. Re7 {[%emt 0:00:27]} Rf4 {[%emt 0:00:00]} 28. Re8+ {[%emt 0:00:34]} Rxe8 {[%emt 0:00:00]} 29. Qxe8+ {[%emt 0:00:02]} Kh7 {[%emt 0:00:00]} 30. Qe2 {[%emt 0:00:58]} Qd7 {[%emt 0:00:00]} 31. Qc2 {[%emt 0:00:31]} Rxf3 {[%emt 0:00:00]} 32. Qxc3 {[%emt 0:00:29]} Rxh3+ {[%emt 0:00:00]} 33. Kg1 {[%emt 0:00:31]} Qg4 {[%emt 0:01:16]} 34. Qe1 {[%emt 0:00:29]} Qd4+ {[%emt 0:00:21]} 35. Qf2 {[%emt 0:00:21]} Rh1+ {[%emt 0:00:04]} 36. Kxh1 {[%emt 0:00:40]} Qxf2 {[%emt 0:00:06]} 37. Rb1 {[%emt 0:00:29]} Qh4+ {[%emt 0:00:26]} 38. Kg1 {[%emt 0:00:12]} Qd4+ {[%emt 0:00:05]} 0-1

[Event "AUT-ch U18-Open 2025"]
[Site "Fuerstenfeld"]
[Date "2025.04.13"]
[Round "1.7"]
[White "Loretz, Jonas"]
[Black "Jetzl, Julian"]
[Result "1-0"]
[Annotator "NA"]
[ECO "B90"]
[WhiteElo "1869"]
[BlackElo "2146"]
[PlyCount "87"]
[EventDate "2025.04.12"]
[EventType "swiss"]
[EventCountry "AUT"]
[SourceTitle "playchess.com"]
[Source "ChessBase"]
[SourceQuality "1"]
[TimeControl "5400+30"]

1. e4 {[%emt 0:00:07]} c5 {[%emt 0:00:15]} 2. Nf3 {[%emt 0:00:12]} d6 {[%emt 0:00:27]} 3. d4 {[%emt 0:00:20]} cxd4 {[%emt 0:00:19]} 4. Nxd4 {[%emt 0:00:09]} Nf6 {[%emt 0:00:30]} 5. Nc3 {[%emt 0:00:23]} a6 {[%emt 0:00:36]} 6. a4 {[%emt 0:00:53]} e5 {[%emt 0:06:33]} 7. Nf3 {[%emt 0:01:14]} Be7 {[%emt 0:02:25]} 8. Bg5 {[%emt 0:02:24]} Be6 {[%emt 0:04:05]} 9. Bxf6 {[%emt 0:07:00]} Bxf6 {[%emt 0:00:48]} 10. Nd5 {[%emt 0:01:30]} Bxd5 {[%emt 0:04:35]} 11. Qxd5 {[%emt 0:01:41]} Qc7 {[%emt 0:02:34]} 12. Bc4 {[%emt 0:03:47]} O-O {[%emt 0:05:42]} 13. O-O {[%emt 0:03:31]} Nd7 {[%emt 0:06:00]} 14. Bb3 {[%emt 0:05:55]} Nc5 {[%emt 0:01:25]} 15. Rfd1 {[%emt 0:10:17]} Be7 {[%emt 0:07:13]} 16. Nd2 {[%emt 0:08:40]} Qc6 {[%emt 0:09:34]} 17. f3 {[%emt 0:08:12]} Ne6 {[%emt 0:24:09]} 18. Qxc6 {[%emt 0:12:32]} bxc6 {[%emt 0:00:05]} 19. Bxe6 {[%emt 0:00:53]} fxe6 {[%emt 0:00:08]} 20. Nc4 {[%emt 0:00:22]} Rab8 {[%emt 0:09:24]} 21. b3 {[%emt 0:03:02]} Rfd8 {[%emt 0:01:42]} 22. Rd3 {[%emt 0:01:52]} d5 {[%emt 0:04:41]} 23. exd5 {[%emt 0:03:34]} cxd5 {[%emt 0:05:51]} 24. Nxe5 {[%emt 0:01:16]} Rbc8 {[%emt 0:00:40]} 25. c3 {[%emt 0:04:26]} a5 {[%emt 0:01:24]} 26. Rad1 {[%emt 0:01:27]} Rf8 {[%emt 0:01:23]} 27. Re1 {[%emt 0:02:54]} Rfd8 {[%emt 0:00:59]} 28. c4 {[%emt 0:04:07]} Bf6 {[%emt 0:00:24]} 29. cxd5 {[%emt 0:01:22]} Rxd5 {[%emt 0:00:19]} 30. Rxd5 {[%emt 0:01:30]} exd5 {[%emt 0:00:08]} 31. f4 {[%emt 0:01:29]} Rc3 {[%emt 0:00:31]} 32. Rd1 {[%emt 0:00:56]} Rxb3 {[%emt 0:00:51]} 33. Rxd5 {[%emt 0:00:22]} Rb4 {[%emt 0:00:14]} 34. Rxa5 {[%emt 0:00:38]} g5 {[%emt 0:00:50]} 35. fxg5 {[%emt 0:01:17]} Bxe5 {[%emt 0:00:18]} 36. Rxe5 {[%emt 0:00:16]} Rxa4 {[%emt 0:00:04]} 37. g3 {[%emt 0:00:14]} Kg7 {[%emt 0:01:04]} 38. h4 {[%emt 0:00:41]} Kg6 {[%emt 0:00:36]} 39. Kg2 {[%emt 0:00:20]} Ra2+ {[%emt 0:00:33]} 40. Kh3 {[%emt 0:00:19]} Ra4 {[%emt 0:00:24]} 41. Re6+ {[%emt 0:00:17]} Kg7 {[%emt 0:00:19]} 42. Rf6 {[%emt 0:00:07]} Rb4 {[%emt 0:00:51]} 43. Rf4 {[%emt 0:00:15]} Rb1 {[%emt 0:00:27]} 44. Kg4 {[%emt 0:00:06]} 1-0

[Event "AUT-ch U18-Open 2025"]
[Site "Fuerstenfeld"]
[Date "2025.04.13"]
[Round "1.8"]
[White "Gruenwald, Simon"]
[Black "Schramml, Fabian"]
[Result "1-0"]
[Annotator "NA"]
[ECO "B33"]
[WhiteElo "2101"]
[BlackElo "1838"]
[PlyCount "55"]
[EventDate "2025.04.12"]
[EventType "swiss"]
[EventCountry "AUT"]
[SourceTitle "playchess.com"]
[Source "ChessBase"]
[SourceQuality "1"]
[TimeControl "5400+30"]

1. e4 {[%emt 0:01:20]} c5 {[%emt 0:00:08]} 2. Nf3 {[%emt 0:00:03]} e6 {[%emt 0:00:05]} 3. d4 {[%emt 0:00:04]} cxd4 {[%emt 0:00:05]} 4. Nxd4 {[%emt 0:00:04]} Nf6 {[%emt 0:00:16]} 5. Nc3 {[%emt 0:00:02]} Nc6 {[%emt 0:00:07]} 6. Ndb5 {[%emt 0:00:01]} d6 {[%emt 0:00:06]} 7. Bf4 {[%emt 0:00:02]} e5 {[%emt 0:00:05]} 8. Bg5 {[%emt 0:00:02]} a6 {[%emt 0:00:40]} 9. Na3 {[%emt 0:00:05]} b5 {[%emt 0:00:04]} 10. Nd5 {[%emt 0:00:05]} Be7 {[%emt 0:00:06]} 11. Bxf6 {[%emt 0:00:05]} Bxf6 {[%emt 0:00:05]} 12. c4 {[%emt 0:00:02]} b4 {[%emt 0:00:05]} 13. Nc2 {[%emt 0:00:04]} a5 {[%emt 0:00:02]} 14. Qf3 {[%emt 0:00:02]} Bg5 {[%emt 0:03:30]} 15. h4 {[%emt 0:00:01]} Bf6 {[%emt 0:03:33]} 16. g4 {[%emt 0:03:10]} h6 {[%emt 0:02:46]} 17. Rd1 {[%emt 0:01:19]} Be6 {[%emt 0:03:40]} 18. Nxf6+ {[%emt 0:01:22]} gxf6 {[%emt 0:00:26]} 19. c5 {[%emt 0:00:31]} Qc8 {[%emt 0:19:43]} 20. Rxd6 {[%emt 0:04:23]} Ke7 {[%emt 0:05:15]} 21. Ne3 {[%emt 0:04:02]} Nd4 {[%emt 0:01:22]} 22. Nd5+ {[%emt 0:00:10]} Kf8 {[%emt 0:05:05]} 23. Qxf6 {[%emt 0:00:34]} Rh7 {[%emt 0:00:37]} 24. Qe7+ {[%emt 0:09:53]} Kg7 {[%emt 0:00:51]} 25. Qf6+ {[%emt 0:00:02]} Kf8 {[%emt 0:00:09]} 26. Qe7+ {[%emt 0:00:29]} Kg7 {[%emt 0:00:06]} 27. Nc7 {[%emt 0:00:18]} Rb8 {[%emt 0:04:06]} 28. Ba6 {[%emt 0:00:30]} 1-0